[Event "10th LCC FIDE Open 2018"]
[Site "London"]
[Date "2018.12.12"]
[Round "4"]
[White "Fischer, Daniel"]
[Black "Eggleston, David J"]
[Result "1-0"]
[ECO "B99"]
[WhiteElo "2324"]
[BlackElo "2397"]
[Annotator "RC"]
[PlyCount "203"]
[EventDate "2018.12.09"]
[EventType "swiss"]
[EventCountry "ENG"]
[SourceTitle "playchess.com"]
[Source "ChessBase"]
[SourceQuality "1"]
[TimeControl "40/5400+30:1800+30"]

1. e4 {[%emt 0:00:00]} c5 {[%emt 0:00:21]} 2. Nf3 {[%emt 0:00:00]} d6 {[%emt 0:00:10]} 3. d4 {[%emt 0:00:00]} Nf6 {[%emt 0:00:03]} 4. Nc3 {[%emt 0:00:00]} cxd4 {[%emt 0:00:11]} 5. Nxd4 {[%emt 0:00:00]} a6 {[%emt 0:00:04]} 6. Bg5 {[%emt 0:00:10]} e6 {[%emt 0:00:16]} 7. f4 {[%emt 0:00:12]} Be7 {[%emt 0:00:55]} 8. Qf3 {[%emt 0:00:18]} Qc7 {[%emt 0:00:09]} 9. O-O-O {[%emt 0:00:53]} Nbd7 {[%emt 0:00:11]} 10. g4 {[%emt 0:00:33]} b5 {[%emt 0:00:18]} 11. Bxf6 {[%emt 0:00:24]} Nxf6 {[%emt 0:00:25]} 12. g5 {[%emt 0:00:11]} Nd7 {[%emt 0:00:05]} 13. f5 {[%emt 0:00:28]} O-O {[%emt 0:00:32]} 14. h4 {[%emt 0:00:21]} b4 {[%emt 0:01:20]} 15. Nce2 {[%emt 0:00:32]} Bb7 {[%emt 0:00:27]} 16. Kb1 {[%emt 0:00:21]} Nc5 {[%emt 0:17:38]} 17. Ng3 {[%emt 0:04:43]} d5 {[%emt 0:06:28]} 18. f6 {[%emt 0:06:27]} dxe4 {[%emt 0:00:25]} 19. Qg4 {[%emt 0:00:15]} Bd6 {[%emt 0:02:30]} 20. g6 {[%emt 0:03:27]} hxg6 {[%emt 0:12:12]} 21. h5 {[%emt 0:01:16]} Bxg3 {[%emt 0:08:09]} 22. hxg6 {[%emt 0:00:22]} Qf4 {[%emt 0:06:50]} 23. Qh5 {[%emt 0:00:58]} Qh6 {[%emt 0:03:34]} 24. fxg7 {[%emt 0:00:39]} Qxg7 {[%emt 0:09:31]} 25. gxf7+ {[%emt 0:02:42]} Rxf7 {[%emt 0:00:42]} 26. Qxc5 {[%emt 0:00:49]} Bf2 {[%emt 0:10:12]} 27. Bc4 {[%emt 0:29:39]} Rc8 {[%emt 0:01:36]} 28. Nxe6 {[%emt 0:05:51]} Bxc5 {[%emt 0:09:58]} 29. Nxg7 {[%emt 0:00:06]} Kxg7 {[%emt 0:00:15]} 30. Bxf7 {[%emt 0:00:17]} Bf2 {[%emt 0:02:54]} 31. Bd5 {[%emt 0:26:16]} Bxd5 {[%emt 0:00:06]} 32. Rxd5 {[%emt 0:00:04]} Re8 {[%emt 0:00:19]} 33. Rhh5 {[%emt 0:01:37]} e3 {[%emt 0:01:46]} 34. Rhe5 {[%emt 0:03:00]} Rh8 {[%emt 0:00:08]} 35. a3 {[%emt 0:01:13]} bxa3 {[%emt 0:00:44]} 36. bxa3 {[%emt 0:00:51]} Kf6 {[%emt 0:00:36]} 37. Re4 {[%emt 0:01:37]} Rh4 {[%emt 0:02:23]} 38. Rde5 {[%emt 0:01:16]} Rh1+ {[%emt 0:01:38]} 39. Ka2 {[%emt 0:02:30]} Re1 {[%emt 0:00:37]} 40. c4 {[%emt 0:02:01]} Rc1 {[%emt 0:01:11]} 41. c5 {[%emt 0:34:08]} a5 {[%emt 0:05:58]} 42. Kb3 {[%emt 0:00:00]} e2 {[%emt 0:04:13]} 43. Rxe2 {[%emt 0:00:00]} Bxc5 {[%emt 0:00:05]} 44. Rd5 {[%emt 0:00:00]} a4+ {[%emt 0:03:46]} 45. Kxa4 {[%emt 0:00:00]} Rc3 {[%emt 0:00:05]} 46. Ra2 {[%emt 0:00:00]} Ke6 {[%emt 0:00:06]} 47. Rdd2 {[%emt 0:00:00]} Bd6 {[%emt 0:00:55]} 48. Rdb2 {[%emt 0:00:00]} Kd7 {[%emt 0:01:37]} 49. Rb3 {[%emt 0:00:00]} Rc8 {[%emt 0:00:46]} 50. Kb5 {[%emt 0:00:00]} Rc5+ {[%emt 0:02:17]} 51. Ka6 {[%emt 0:00:00]} Kc8 {[%emt 0:03:33]} 52. Kb6 {[%emt 0:00:00]} Rc7 {[%emt 0:00:32]} 53. Rh3 {[%emt 0:00:43]} Bc5+ {[%emt 0:00:31]} 54. Kb5 {[%emt 0:00:12]} Bd4 {[%emt 0:00:45]} 55. a4 {[%emt 0:00:38]} Kb7 {[%emt 0:00:00]} 56. Rd3 {[%emt 0:00:34]} Ba7 {[%emt 0:02:33]} 57. Rad2 {[%emt 0:00:42]} Rc5+ {[%emt 0:00:17]} 58. Kb4 {[%emt 0:00:06]} Bb6 {[%emt 0:00:33]} 59. Rd7+ {[%emt 0:01:20]} Ka6 {[%emt 0:00:45]} 60. Re2 {[%emt 0:03:15]} Rc1 {[%emt 0:01:08]} 61. Re6 {[%emt 0:01:28]} Rb1+ {[%emt 0:00:54]} 62. Ka3 {[%emt 0:00:32]} Ra1+ {[%emt 0:05:47]} 63. Kb3 {[%emt 0:00:09]} Rb1+ {[%emt 0:00:21]} 64. Kc2 {[%emt 0:01:47]} Rb4 {[%emt 0:03:07]} 65. Kc3 {[%emt 0:01:48]} Rh4 {[%emt 0:00:16]} 66. Rdd6 {[%emt 0:00:35]} Rh3+ {[%emt 0:00:05]} 67. Rd3 {[%emt 0:00:36]} Rh5 {[%emt 0:00:31]} 68. Kb3 {[%emt 0:00:23]} Rg5 {[%emt 0:01:11]} 69. Re4 {[%emt 0:00:49]} Rh5 {[%emt 0:00:20]} 70. Re6 {[%emt 0:00:30]} Rg5 {[%emt 0:00:18]} 71. Ka3 {[%emt 0:00:34]} Ka7 {[%emt 0:00:39]} 72. Kb4 {[%emt 0:00:56]} Rg4+ {[%emt 0:00:25]} 73. Kb5 {[%emt 0:00:45]} Rg5+ {[%emt 0:00:04]} 74. Kc6 {[%emt 0:00:45]} Rc5+ {[%emt 0:00:08]} 75. Kd7 {[%emt 0:00:18]} Rc7+ {[%emt 0:01:18]} 76. Ke8 {[%emt 0:00:08]} Rc4 {[%emt 0:01:06]} 77. Rdd6 {[%emt 0:00:14]} Rc8+ {[%emt 0:02:27]} 78. Kf7 {[%emt 0:00:30]} Rc7+ {[%emt 0:00:27]} 79. Kg6 {[%emt 0:00:12]} Bg1 {[%emt 0:00:18]} 80. Rf6 {[%emt 0:00:40]} Bh2 {[%emt 0:01:13]} 81. Rc6 {[%emt 0:00:30]} Rd7 {[%emt 0:00:36]} 82. Rf7 {[%emt 0:00:46]} Rb7 {[%emt 0:00:22]} 83. Kf6 {[%emt 0:01:02]} Rxf7+ {[%emt 0:00:31]} 84. Kxf7 {[%emt 0:00:05]} Kb7 {[%emt 0:00:18]} 85. Rc4 {[%emt 0:00:18]} Bg3 {[%emt 0:00:51]} 86. Ke6 {[%emt 0:00:06]} Be1 {[%emt 0:00:11]} 87. Kd5 {[%emt 0:00:21]} Bf2 {[%emt 0:00:32]} 88. Rg4 {[%emt 0:00:14]} Ba7 {[%emt 0:00:49]} 89. Kc4 {[%emt 0:00:31]} Ka8 {[%emt 0:00:18]} 90. Kb5 {[%emt 0:00:09]} Bb8 {[%emt 0:00:16]} 91. a5 {[%emt 0:02:21]} Be5 {[%emt 0:00:25]} 92. Kb6 {[%emt 0:00:36]} Bb8 {[%emt 0:00:23]} 93. Ka6 {[%emt 0:00:43]} Be5 {[%emt 0:00:12]} 94. Rg8+ {[%emt 0:00:03]} Bb8 {[%emt 0:00:04]} 95. Kb5 {[%emt 0:00:11]} Kb7 {[%emt 0:00:21]} 96. a6+ {[%emt 0:00:23]} Ka8 {[%emt 0:00:33]} 97. Rh8 {[%emt 0:00:38]} Ka7 {[%emt 0:00:04]} 98. Rh7+ {[%emt 0:00:03]} Ka8 {[%emt 0:01:08]} 99. Kb6 {[%emt 0:00:14]} Bd6 {[%emt 0:01:37]} 100. a7 {[%emt 0:00:28]} Bf8 {[%emt 0:00:08]} 101. Rc7 {[%emt 0:00:51]} Bc5+ {[%emt 0:00:40]} 102. Ka6 {[%emt 0:00:08]} 1-0

[Event "10th LCC FIDE Open 2018"]
[Site "London"]
[Date "2018.12.12"]
[Round "4"]
[White "Venkataramanan, T.S."]
[Black "Bates, Caspar J"]
[Result "1-0"]
[ECO "C99"]
[WhiteElo "2253"]
[BlackElo "2113"]
[Annotator "RC"]
[PlyCount "181"]
[EventDate "2018.12.09"]
[EventType "swiss"]
[EventCountry "ENG"]
[SourceTitle "playchess.com"]
[Source "ChessBase"]
[SourceQuality "1"]
[TimeControl "40/5400+30:1800+30"]

1. e4 {[%emt 0:00:00]} e5 {[%emt 0:00:00]} 2. Nf3 {[%emt 0:00:00]} Nc6 {[%emt 0:00:00]} 3. Bb5 {[%emt 0:00:01]} a6 {[%emt 0:00:00]} 4. Ba4 {[%emt 0:00:09]} Nf6 {[%emt 0:00:00]} 5. O-O {[%emt 0:00:12]} Be7 {[%emt 0:00:20]} 6. Re1 {[%emt 0:00:09]} b5 {[%emt 0:00:14]} 7. Bb3 {[%emt 0:00:09]} d6 {[%emt 0:00:07]} 8. c3 {[%emt 0:00:10]} O-O {[%emt 0:00:17]} 9. h3 {[%emt 0:00:07]} Na5 {[%emt 0:00:57]} 10. Bc2 {[%emt 0:00:25]} c5 {[%emt 0:00:11]} 11. d4 {[%emt 0:00:17]} Qc7 {[%emt 0:00:16]} 12. Nbd2 {[%emt 0:00:28]} cxd4 {[%emt 0:01:08]} 13. cxd4 {[%emt 0:00:15]} Bb7 {[%emt 0:01:34]} 14. d5 {[%emt 0:00:26]} Rac8 {[%emt 0:01:29]} 15. Bd3 {[%emt 0:01:28]} Nd7 {[%emt 0:00:47]} 16. Nf1 {[%emt 0:00:51]} f5 {[%emt 0:01:10]} 17. exf5 {[%emt 0:06:32]} Nc4 {[%emt 0:00:58]} 18. Ng3 {[%emt 0:11:55]} Nc5 {[%emt 0:29:50]} 19. Bb1 {[%emt 0:05:08]} Na4 {[%emt 0:02:51]} 20. b3 {[%emt 0:11:02]} Nc3 {[%emt 0:04:48]} 21. Qc2 {[%emt 0:02:05]} Nxd5 {[%emt 0:06:46]} 22. bxc4 {[%emt 0:01:05]} bxc4 {[%emt 0:00:16]} 23. a3 {[%emt 0:05:09]} Bf6 {[%emt 0:03:20]} 24. Ne4 {[%emt 0:01:12]} Ne7 {[%emt 0:01:20]} 25. Nxf6+ {[%emt 0:12:58]} gxf6 {[%emt 0:00:25]} 26. Qe2 {[%emt 0:06:18]} Rf7 {[%emt 0:01:31]} 27. Nh4 {[%emt 0:03:04]} d5 {[%emt 0:08:02]} 28. Bh6 {[%emt 0:02:46]} d4 {[%emt 0:03:28]} 29. Qg4+ {[%emt 0:02:33]} Kh8 {[%emt 0:00:17]} 30. Qh5 {[%emt 0:00:22]} Nd5 {[%emt 0:01:07]} 31. Re4 {[%emt 0:04:53]} Nf4 {[%emt 0:04:14]} 32. Bxf4 {[%emt 0:01:39]} Bxe4 {[%emt 0:01:19]} 33. Bxe4 {[%emt 0:00:10]} exf4 {[%emt 0:00:08]} 34. Bd5 {[%emt 0:01:20]} Rg7 {[%emt 0:00:56]} 35. Ng6+ {[%emt 0:01:42]} Rxg6 {[%emt 0:00:14]} 36. fxg6 {[%emt 0:00:22]} Qg7 {[%emt 0:00:36]} 37. gxh7 {[%emt 0:03:53]} Qxh7 {[%emt 0:02:14]} 38. Qxh7+ {[%emt 0:00:24]} Kxh7 {[%emt 0:00:02]} 39. Rc1 {[%emt 0:00:38]} c3 {[%emt 0:03:26]} 40. Be4+ {[%emt 0:00:11]} Kh6 {[%emt 0:00:26]} 41. Kf1 {[%emt 0:30:40]} f3 {[%emt 0:33:26]} 42. gxf3 {[%emt 0:00:55]} Kg5 {[%emt 0:00:16]} 43. Ke2 {[%emt 0:00:35]} f5 {[%emt 0:00:33]} 44. Bb7 {[%emt 0:01:49]} Rb8 {[%emt 0:00:40]} 45. Bxa6 {[%emt 0:07:20]} Rb2+ {[%emt 0:09:13]} 46. Kd3 {[%emt 0:00:18]} Rd2+ {[%emt 0:01:20]} 47. Kc4 {[%emt 0:00:08]} Kf4 {[%emt 0:00:51]} 48. Bb7 {[%emt 0:03:14]} c2 {[%emt 0:01:24]} 49. Bc6 {[%emt 0:00:52]} d3 {[%emt 0:00:18]} 50. Ba4 {[%emt 0:00:23]} Rxf2 {[%emt 0:04:15]} 51. Kxd3 {[%emt 0:00:33]} Rxf3+ {[%emt 0:00:15]} 52. Kxc2 {[%emt 0:02:24]} Rxa3 {[%emt 0:00:19]} 53. Bb3 {[%emt 0:01:33]} Ra6 {[%emt 0:00:00]} 54. Rf1+ {[%emt 0:00:00]} Kg3 {[%emt 0:00:00]} 55. Rxf5 {[%emt 0:00:00]} Kxh3 {[%emt 0:00:00]} 56. Bc4 {[%emt 0:00:00]} Kg4 {[%emt 0:00:00]} 57. Rf1 {[%emt 0:00:00]} Ra4 {[%emt 0:00:00]} 58. Kd3 {[%emt 0:00:00]} Ra3+ {[%emt 0:00:00]} 59. Ke4 {[%emt 0:00:00]} Kg3 {[%emt 0:00:00]} 60. Bd3 {[%emt 0:00:00]} Ra7 {[%emt 0:00:00]} 61. Ke3 {[%emt 0:00:00]} Ra3 {[%emt 0:00:00]} 62. Rg1+ {[%emt 0:00:00]} Kh4 {[%emt 0:00:00]} 63. Rg8 {[%emt 0:00:00]} Kh5 {[%emt 0:00:00]} 64. Rg1 {[%emt 0:00:00]} Kh6 {[%emt 0:00:00]} 65. Kd4 {[%emt 0:00:00]} Ra5 {[%emt 0:00:00]} 66. Be4 {[%emt 0:00:00]} Rg5 {[%emt 0:00:00]} 67. Rf1 {[%emt 0:00:00]} Kg7 {[%emt 0:00:00]} 68. Ke3 {[%emt 0:00:00]} Ra5 {[%emt 0:00:00]} 69. Kf4 {[%emt 0:00:00]} Kf6 {[%emt 0:00:00]} 70. Rh1 {[%emt 0:00:00]} Ke6 {[%emt 0:00:00]} 71. Rh6+ {[%emt 0:00:00]} Kd7 {[%emt 0:00:00]} 72. Ke3 {[%emt 0:00:00]} Ra1 {[%emt 0:00:00]} 73. Kd4 {[%emt 0:00:00]} Rc1 {[%emt 0:00:00]} 74. Bd5 {[%emt 0:00:00]} Re1 {[%emt 0:00:56]} 75. Kc5 {[%emt 0:00:00]} Ke7 {[%emt 0:00:14]} 76. Kd4 {[%emt 0:00:00]} Kd7 {[%emt 0:00:56]} 77. Rf6 {[%emt 0:00:00]} Re2 {[%emt 0:02:10]} 78. Kc5 {[%emt 0:00:00]} Rc2+ {[%emt 0:00:59]} 79. Bc4 {[%emt 0:00:00]} Rc1 {[%emt 0:00:58]} 80. Rf7+ {[%emt 0:00:00]} Ke8 {[%emt 0:00:25]} 81. Ra7 {[%emt 0:00:00]} Kf8 {[%emt 0:01:13]} 82. Kd5 {[%emt 0:00:00]} Rh1 {[%emt 0:02:38]} 83. Kd6 {[%emt 0:00:00]} Rh6+ {[%emt 0:01:37]} 84. Be6 {[%emt 0:00:00]} Rf6 {[%emt 0:01:04]} 85. Ke5 {[%emt 0:00:00]} Rf1 {[%emt 0:02:03]} 86. Bf5 {[%emt 0:00:00]} Ke8 {[%emt 0:00:15]} 87. Kf6 {[%emt 0:00:00]} Kd8 {[%emt 0:03:02]} 88. Rd7+ {[%emt 0:00:00]} Ke8 {[%emt 0:00:01]} 89. Rd2 {[%emt 0:00:00]} Rf4 {[%emt 0:01:24]} 90. Re2+ {[%emt 0:00:00]} Kd8 {[%emt 0:00:37]} 91. Rc2 {[%emt 0:00:00]} 1-0

[Event "10th LCC FIDE Open 2018"]
[Site "London"]
[Date "2018.12.12"]
[Round "4"]
[White "Ghukasyan, Siranush"]
[Black "Price, Gwilym"]
[Result "1/2-1/2"]
[ECO "B45"]
[WhiteElo "2245"]
[BlackElo "2075"]
[Annotator "NA"]
[PlyCount "75"]
[EventDate "2018.12.09"]
[EventType "swiss"]
[EventCountry "ENG"]
[SourceTitle "playchess.com"]
[Source "ChessBase"]
[SourceQuality "1"]
[TimeControl "40/5400+30:1800+30"]

1. e4 {[%emt 0:00:00]} c5 {[%emt 0:00:00]} 2. Nf3 {[%emt 0:00:00]} e6 {[%emt 0:00:00]} 3. d4 {[%emt 0:00:00]} cxd4 {[%emt 0:00:00]} 4. Nxd4 {[%emt 0:00:01]} Nf6 {[%emt 0:00:00]} 5. Nc3 {[%emt 0:00:08]} Nc6 {[%emt 0:00:00]} 6. Ndb5 {[%emt 0:00:18]} Bb4 {[%emt 0:00:09]} 7. a3 {[%emt 0:03:55]} Bxc3+ {[%emt 0:00:06]} 8. Nxc3 {[%emt 0:00:06]} d5 {[%emt 0:00:05]} 9. exd5 {[%emt 0:06:08]} exd5 {[%emt 0:00:06]} 10. Bd3 {[%emt 0:03:55]} d4 {[%emt 0:00:44]} 11. Ne2 {[%emt 0:05:46]} Bf5 {[%emt 0:00:42] LiveBook: 21 Games} 12. O-O {[%emt 0:03:02]} Bxd3 {[%emt 0:00:21] B45: Sicilian Four Knights} 13. Qxd3 {[%emt 0:00:01]} Qd5 {[%emt 0:04:34]} (13... O-O 14. Bg5 h6 15. Bh4 g5 16. Bg3 Qd5 17. b4 b5 18. c3 dxc3 19. Qxc3 Ne4 20. Qc2 Rac8 21. Rfd1 Qf5 22. Qb2 {½-½ (65) Akopian,V (2682)-Ter Sahakyan,S (2572) Yerevan 2014}) 14. Nf4 {[%emt 0:03:12]} Qe5 {[%emt 0:00:16]} 15. Qb3 {[%emt 0:00:44]} Qe7 $146 {[%emt 0:05:12]} ({Predecessor:} 15... O-O 16. Qxb7 Rfc8 17. Bd2 Qc5 18. Qb3 Ne5 19. Rac1 Rab8 20. Qa4 {1-0 (42) Gufeld,E-Bukhman,E Tallinn (Estland) 1965}) 16. Nd3 {[%emt 0:04:25]} O-O {[%emt 0:01:37]} 17. Bg5 {[%emt 0:00:23]} b6 {[%emt 0:05:28]} 18. Nb4 {[%emt 0:05:14]} Nxb4 {[%emt 0:07:23]} 19. axb4 {[%emt 0:00:14]} Qe5 {[%emt 0:00:23]} 20. Bxf6 {[%emt 0:00:31]} Qxf6 {[%emt 0:00:54]} 21. b5 {[%emt 0:00:11]} Qe5 {[%emt 0:01:28]} 22. Rfe1 {[%emt 0:01:03]} Qc5 {[%emt 0:00:25]} 23. Ra4 {[%emt 0:01:31]} Rfe8 {[%emt 0:04:31]} 24. Rxe8+ {[%emt 0:02:58]} Rxe8 {[%emt 0:00:19]} 25. h3 {[%emt 0:03:43]} Re1+ {[%emt 0:04:45]} 26. Kh2 {[%emt 0:00:01]} Qe5+ {[%emt 0:00:15]} 27. Qg3 {[%emt 0:00:08]} Qxb5 {[%emt 0:01:40]} 28. Rxa7 {[%emt 0:00:20]} g6 {[%emt 0:05:33]} 29. Qf4 {[%emt 0:05:06]} Qd5 {[%emt 0:02:48]} 30. Qb8+ {[%emt 0:10:13]} Kg7 {[%emt 0:00:12]} 31. Ra8 {[%emt 0:00:58]} Qe5+ {[%emt 0:02:35]} 32. Qxe5+ {[%emt 0:00:29]} Rxe5 {[%emt 0:00:04]} 33. Rd8 {[%emt 0:00:16]} Rc5 {[%emt 0:01:08]} 34. Rxd4 {[%emt 0:00:11]} Rxc2 {[%emt 0:00:06]} 35. Rb4 {[%emt 0:00:02]} Rc6 {[%emt 0:00:27]} 36. Kg3 {[%emt 0:00:17]} Kf6 $11 {[%emt 0:00:31]} 37. Rb5 {[%emt 0:00:30]} Rd6 {[%emt 0:01:18]} 38. Kf3 {[%emt 0:00:43]} 1/2-1/2

[Event "10th LCC FIDE Open 2018"]
[Site "London"]
[Date "2018.12.12"]
[Round "4"]
[White "Marzano, Carlo"]
[Black "Penna, Tommaso"]
[Result "1/2-1/2"]
[ECO "E92"]
[WhiteElo "2222"]
[BlackElo "1963"]
[Annotator "NA"]
[PlyCount "53"]
[EventDate "2018.12.09"]
[EventType "swiss"]
[EventCountry "ENG"]
[SourceTitle "playchess.com"]
[Source "ChessBase"]
[SourceQuality "1"]
[TimeControl "40/5400+30:1800+30"]

1. d4 {[%emt 0:00:00]} Nf6 {[%emt 0:05:51]} 2. c4 {[%emt 0:00:00]} g6 {[%emt 0:00:08]} 3. Nc3 {[%emt 0:00:05]} Bg7 {[%emt 0:00:08]} 4. e4 {[%emt 0:00:13]} d6 {[%emt 0:00:06]} 5. Be2 {[%emt 0:00:21]} O-O {[%emt 0:00:08]} 6. Nf3 {[%emt 0:00:17]} e5 {[%emt 0:00:10]} 7. d5 {[%emt 0:00:29]} a5 {[%emt 0:00:07]} 8. Bg5 {[%emt 0:00:12]} h6 {[%emt 0:00:06]} 9. Bh4 {[%emt 0:00:06]} Na6 {[%emt 0:00:10]} 10. Nd2 {[%emt 0:00:24]} Qe8 {[%emt 0:00:11]} 11. a3 {[%emt 0:00:20]} Bd7 {[%emt 0:00:08]} 12. b3 {[%emt 0:00:15]} Nh7 {[%emt 0:00:22]} 13. O-O {[%emt 0:00:25]} f5 {[%emt 0:08:20]} 14. f3 {[%emt 0:00:18] E92: King's Indian: Classical: 6 Be2 e5: 7 dxe5, 7 Be3 and Petrosian System without 7...Nbd7} f4 {[%emt 0:01:46]} 15. Rb1 {[%emt 0:00:28]} g5 {[%emt 0:00:33]} 16. Bf2 {[%emt 0:00:08]} h5 {[%emt 0:00:07]} 17. b4 {[%emt 0:00:44]} axb4 {[%emt 0:00:10]} 18. axb4 {[%emt 0:00:02]} b6 {[%emt 0:00:09] LiveBook: 3 Games} (18... Qg6 19. c5 g4 20. c6 bxc6 21. dxc6 Be6 22. b5 {1-0 (34) Nakamura,H (2778)-Bacrot,E (2713) Biel 2012}) 19. c5 {[%emt 0:10:42]} bxc5 {[%emt 0:00:05]} 20. bxc5 {[%emt 0:01:48]} Nxc5 {[%emt 0:00:40]} 21. Bxc5 {[%emt 0:00:11]} dxc5 {[%emt 0:00:04]} 22. Bb5 $146 {[%emt 0:07:23]} g4 {[%emt 0:21:29]} 23. Nc4 {[%emt 0:02:57]} Ng5 {[%emt 0:03:07]} 24. Bxd7 {[%emt 0:12:32]} Qxd7 {[%emt 0:00:07]} 25. Rb7 {[%emt 0:08:57]} Rab8 {[%emt 0:13:23]} 26. Qb3 {[%emt 0:00:28]} (26. Rxb8 $15 Rxb8 27. Qe2) 26... Qc8 {[%emt 0:01:18]} (26... Rxb7 $17 27. Qxb7 gxf3 28. gxf3 Qh3) 27. Rxb8 $15 {[%emt 0:24:09]} 1/2-1/2

[Event "10th LCC FIDE Open 2018"]
[Site "London"]
[Date "2018.12.12"]
[Round "4"]
[White "Mihalik, Agoston"]
[Black "Edwards, Simon R"]
[Result "1/2-1/2"]
[ECO "B51"]
[WhiteElo "2220"]
[BlackElo "1931"]
[Annotator "NA"]
[PlyCount "73"]
[EventDate "2018.12.09"]
[EventType "swiss"]
[EventCountry "ENG"]
[SourceTitle "playchess.com"]
[Source "ChessBase"]
[SourceQuality "1"]
[TimeControl "40/5400+30:1800+30"]

1. e4 {[%emt 0:00:00]} c5 {[%emt 0:00:00]} 2. Nf3 {[%emt 0:00:00]} d6 {[%emt 0:00:06]} 3. Bb5+ {[%emt 0:00:06]} Nc6 {[%emt 0:00:05]} 4. O-O {[%emt 0:00:20]} Bd7 {[%emt 0:00:04]} 5. Re1 {[%emt 0:00:38]} g6 {[%emt 0:00:44] B51: Sicilian: Moscow Variation (3 Bb5+) without 3...Bd7} (5... Nf6 6. c3 a6 7. Bc4 Bg4 8. d4 cxd4 9. cxd4 Bxf3 10. gxf3 Rc8 11. Nc3 e5 12. Be3 Nxd4 13. Bf1 Ne6 14. Qb3 {½-½ (30) Bartel,M (2600)-Naiditsch,A (2736) Germany 2018}) 6. Bxc6 {[%emt 0:05:49]} Bxc6 {[%emt 0:00:07]} 7. d4 {[%emt 0:00:18]} cxd4 {[%emt 0:00:19]} 8. Qxd4 {[%emt 0:01:41]} Nf6 {[%emt 0:00:17]} 9. e5 {[%emt 0:22:43]} dxe5 {[%emt 0:05:22]} 10. Qxd8+ {[%emt 0:02:19] Rb8 [%emt 00:00:08] Qc8+ Rxc8 [%clk 01:27:48] Nxe5 [%clk 01:01:28] [%emt 00:00:08]} Rxd8 {[%emt 0:00:08]} 11. Nxe5 {[%emt 0:00:08]} Rc8 $146 {[%emt 0:03:20]} ({Predecessor:} 11... Be4 12. c4 Bg7 13. Nc3 Bf5 14. Be3 a6 15. Bb6 {½-½ (30) Van Tricht,M (2384)-Portych,V (2082) ICCF email 2015}) 12. c4 {[%emt 0:14:29]} Bg7 {[%emt 0:01:56]} 13. Nc3 {[%emt 0:09:15]} e6 {[%emt 0:05:40]} 14. Be3 {[%emt 0:06:43]} a6 {[%emt 0:04:06]} 15. Rac1 {[%emt 0:07:06]} Ne4 {[%emt 0:09:48]} (15... Nd7 $11 {keeps the balance.} 16. Nxc6 Rxc6) 16. Nxe4 {[%emt 0:08:30]} (16. Nxc6 $16 Nxc3 17. Na7 (17. bxc3 Rxc6 18. c5 O-O $15) 17... Rxc4 18. bxc3) 16... Bxe5 {[%emt 0:00:27]} 17. f4 {[%emt 0:01:26]} f5 {[%emt 0:04:12]} 18. fxe5 {[%emt 0:04:08]} Bxe4 {[%emt 0:00:05]} 19. Bh6 {[%emt 0:00:45]} Kf7 {[%emt 0:01:01]} 20. Bg5 {[%emt 0:00:15]} Rc7 {[%emt 0:04:22]} 21. b3 {[%emt 0:04:50]} Rhc8 {[%emt 0:01:18]} 22. Red1 {[%emt 0:02:21]} Bc6 {[%emt 0:05:57]} 23. Be3 {[%emt 0:01:50]} Rd7 {[%emt 0:02:38]} 24. Rxd7+ {[%emt 0:00:06]} Bxd7 {[%emt 0:00:06]} 25. Rd1 {[%emt 0:00:01]} Bc6 {[%emt 0:00:22]} 26. Bb6 {[%emt 0:00:12]} Re8 {[%emt 0:01:10]} 27. Bd8 {[%emt 0:00:38]} h6 $11 {[%emt 0:00:03]} 28. h4 {[%emt 0:00:13]} Rg8 {[%emt 0:00:51]} 29. Bf6 {[%emt 0:03:09]} Rc8 {[%emt 0:01:52]} 30. Bd8 {[%emt 0:00:53]} Ke8 {[%emt 0:00:50]} 31. Bb6 {[%emt 0:01:20]} g5 {[%emt 0:03:48]} 32. hxg5 {[%emt 0:00:11]} hxg5 {[%emt 0:00:06]} 33. Kf2 {[%emt 0:00:07]} Kf7 {[%emt 0:00:08]} 34. Bd8 {[%emt 0:01:13]} g4 {[%emt 0:00:14]} 35. g3 {[%emt 0:00:35]} b5 {[%emt 0:04:45]} 36. cxb5 {[%emt 0:01:23]} axb5 {[%emt 0:01:26]} 37. Ra1 {[%emt 0:02:35]} 1/2-1/2

[Event "10th LCC FIDE Open 2018"]
[Site "London"]
[Date "2018.12.12"]
[Round "4"]
[White "Haribalu, V.."]
[Black "Cramling Bellon, Anna"]
[Result "1-0"]
[ECO "B21"]
[WhiteElo "2208"]
[BlackElo "1927"]
[Annotator "NA"]
[PlyCount "71"]
[EventDate "2018.12.09"]
[EventType "swiss"]
[EventCountry "ENG"]
[SourceTitle "playchess.com"]
[Source "ChessBase"]
[SourceQuality "1"]
[TimeControl "40/5400+30:1800+30"]

1. e4 {[%emt 0:00:00]} c5 {[%emt 0:00:00]} 2. d4 {[%emt 0:00:00]} cxd4 {[%emt 0:00:00]} 3. c3 {[%emt 0:00:00]} dxc3 {[%emt 0:02:20]} 4. Nxc3 {[%emt 0:00:00]} Nc6 {[%emt 0:00:06]} 5. Nf3 {[%emt 0:00:42]} e6 {[%emt 0:00:19]} 6. Bc4 {[%emt 0:00:36]} Qc7 {[%emt 0:00:21]} 7. O-O {[%emt 0:00:43]} Nf6 {[%emt 0:00:13]} 8. Nb5 {[%emt 0:01:48]} Qb8 {[%emt 0:00:25]} 9. e5 {[%emt 0:02:20]} Nxe5 {[%emt 0:28:54] LiveBook: 7 Games} (9... Ng4 $11) 10. Nxe5 {[%emt 0:06:37] B21: Sicilian: 2 f4 and Morra Gambit} Qxe5 {[%emt 0:00:08]} 11. Re1 {[%emt 0:01:52]} Qb8 {[%emt 0:18:01]} (11... Qc5 $16 12. Bf1 Nd5) 12. Qd4 {[%emt 0:04:07]} b6 $146 {[%emt 0:21:51]} (12... Nh5 {was called for.}) ({Predecessor:} 12... d6 13. Bf4 Bd7 14. Rac1 a6 15. Nxd6+ Bxd6 16. Bxd6 Qd8 17. f4 b5 {1-0 (26) Poulheim,K (2388)-Van Gysel,M (2354) ICCF email 2004}) 13. Bf4 {[%emt 0:13:23]} Bc5 {[%emt 0:03:54]} 14. Qd2 {[%emt 0:40:15]} Qb7 {[%emt 0:00:06]} 15. Nc7+ {[%emt 0:00:07]} Kf8 {[%emt 0:13:29]} 16. b4 {[%emt 0:02:54]} ({Don't take} 16. Nxa8 $6 Qxa8 17. Bd6+ Bxd6 $16) 16... Be7 {[%emt 0:01:42]} 17. Ba6 {[%emt 0:01:57]} Qxa6 {[%emt 0:06:06]} 18. Nxa6 {[%emt 0:00:09]} Bxa6 {[%emt 0:00:02]} 19. Bd6 {[%emt 0:01:46]} Bb7 {[%emt 0:00:23]} 20. Rac1 {[%emt 0:02:59]} Nd5 {[%emt 0:00:09]} 21. Bxe7+ {[%emt 0:00:07]} Kxe7 {[%emt 0:00:17]} 22. Qg5+ {[%emt 0:00:09]} Nf6 {[%emt 0:00:23]} 23. f3 {[%emt 0:01:38]} Rac8 {[%emt 0:01:18]} (23... h6 {was necessary.} 24. Qg3 Bc6) 24. Kf2 {[%emt 0:00:01]} Bd5 {[%emt 0:00:25]} 25. a3 {[%emt 0:01:10]} h6 {[%emt 0:00:25]} 26. Rxc8 {[%emt 0:01:30]} Rxc8 {[%emt 0:00:09]} 27. Qxg7 {[%emt 0:00:02]} h5 {[%emt 0:00:54]} 28. Qg5 {[%emt 0:00:06]} Rc3 {[%emt 0:00:49]} 29. Re3 {[%emt 0:04:16]} Rc2+ {[%emt 0:00:19]} 30. Re2 {[%emt 0:00:02]} Rc3 {[%emt 0:00:13]} 31. Rd2 {[%emt 0:00:30]} Bc4 {[%emt 0:01:11]} 32. Rd4 {[%emt 0:00:02]} Rc2+ $18 {[%emt 0:00:35]} 33. Kg3 {[%emt 0:00:28]} Bf1 {[%emt 0:00:08]} 34. Rd2 {[%emt 0:00:01]} Rc3 {[%emt 0:00:50]} 35. a4 {[%emt 0:00:06]} Rc4 {[%emt 0:00:12]} 36. Kf2 {[%emt 0:00:12]} 1-0